bitfinex-derivatives/quotes_BTCF0:USTF0_20210708
["timestamp","ask_amount","ask_price","bid_price","bid_amount"]
[1625779308609,0.7325,32834.0,32833.0,5.02585604]
[1625779310863,0.7203,32834.0,32833.0,5.02585604]
[1625779312137,0.6016,32834.0,32833.0,5.52585604]
[1625779312287,0.4,32834.0,32833.0,5.52585604]
[1625779312438,0.325,32834.0,32833.0,5.52585604]
[1625779312749,0.24057544,32849.0,32833.0,5.52585604]
[1625779313039,0.24057544,32855.0,32834.0,0.01260525]
[1625779313190,0.24057544,32855.0,32843.0,1.07004409]
[1625779313340,0.24057544,32855.0,32844.0,1.07001724]
[1625779313640,0.24057544,32855.0,32844.0,1.07361856]
[1625779313791,0.24057544,32855.0,32845.0,0.00360135]
[1625779314693,0.24057544,32855.0,32854.0,0.48115088]
[1625779314844,0.9707,32856.0,32854.0,0.75562088]
[1625779315145,0.9707,32856.0,32855.0,0.00360139]
[1625779315895,0.97694979,32856.0,32855.0,0.00360139]
[1625779316045,0.97694979,32856.0,32855.0,3.98120139]
[1625779316646,0.97694979,32856.0,32855.0,3.99020441]
[1625779317848,0.98319957,32856.0,32855.0,3.99020441]
[1625779318824,0.97694979,32856.0,32855.0,3.99020441]
[1625779319275,0.9707,32856.0,32855.0,3.99020441]
[1625779321903,0.9707,32856.0,32855.0,4.49020441]
[1625779322428,0.9707,32856.0,32855.0,4.58200441]
[1625779323861,0.9667,32856.0,32855.0,4.58200441]
[1625779325284,0.17684709,32862.0,32855.0,4.58200441]
[1625779325437,0.17687824,32863.0,32855.0,4.58200441]
[1625779325585,0.53071939,32865.0,32855.0,4.58200441]
[1625779325738,0.53071939,32865.0,32856.0,0.0126014]
[1625779325884,0.53071939,32865.0,32864.0,4.4955]
[1625779326036,0.53071939,32865.0,32864.0,4.82554]
[1625779326336,0.53071939,32865.0,32864.0,4.83814161]
[1625779326485,0.353754,32865.0,32864.0,4.83814161]
[1625779326635,0.353754,32865.0,32864.0,5.31929249]
[1625779326787,0.17717824,32865.0,32864.0,5.31929249]
[1625779327239,0.53138646,32866.0,32864.0,5.31929249]
[1625779327386,0.17722644,32865.0,32864.0,5.31929249]
[1625779327537,0.17722644,32865.0,32864.0,5.30669088]
[1625779327836,0.17722644,32865.0,32864.0,5.31929221]
[1625779328137,0.53137809,32866.0,32864.0,5.31929221]
[1625779328588,0.53137809,32866.0,32865.0,0.01260133]
[1625779328889,0.17719862,32866.0,32865.0,0.01260133]
[1625779329038,0.77219796,32867.0,32865.0,0.01260133]
[1625779329563,0.53160669,32866.0,32865.0,0.01260133]
[1625779329866,0.77232111,32867.0,32865.0,0.01260133]
[1625779330016,0.41788304,32867.0,32865.0,0.01260133]
[1625779331065,0.41788304,32867.0,32866.0,0.0923]
[1625779331215,0.24057544,32867.0,32866.0,0.0923]
[1625779331515,0.24057544,32867.0,32866.0,0.09590021]
[1625779335196,0.24057544,32867.0,32866.0,0.00360021]
[1625779335646,0.24057544,32867.0,32865.0,0.01260099]
[1625779336247,0.24057544,32867.0,32866.0,0.0918]
[1625779336773,0.24057544,32867.0,32866.0,0.09539994]
[1625779338503,0.41781095,32867.0,32866.0,0.09539994]
[1625779339478,0.40281095,32867.0,32866.0,0.09539994]
[1625779339629,0.22557544,32867.0,32866.0,0.09539994]
[1625779341056,1.30463558,32869.0,32866.0,0.09539994]
[1625779341207,0.53248776,32867.0,32866.0,0.00359994]
[1625779341505,0.53259484,32868.0,32866.0,0.00359994]
[1625779342107,0.17759075,32868.0,32866.0,0.00359994]
[1625779342406,0.35559922,32867.0,32865.0,0.01260055]
[1625779342556,0.53349667,32867.0,32865.0,0.18766424]
[1625779342707,0.53349667,32867.0,32866.0,0.591]
[1625779342856,0.17789745,32867.0,32866.0,0.83517474]
[1625779343006,0.17789745,32867.0,32866.0,1.83517474]
[1625779343156,0.17798549,32868.0,32866.0,2.38013448]
[1625779343306,0.53377945,32869.0,32866.0,1.84417265]
[1625779343605,0.53377945,32869.0,32867.0,0.54851283]
[1625779343757,0.53377945,32869.0,32868.0,0.5]
[1625779343905,0.53377945,32869.0,32868.0,0.50359904]
[1625779344055,0.17798627,32869.0,32868.0,0.50359904]
[1625779344360,0.35573654,32870.0,32868.0,0.50359904]
[1625779344361,0.17799854,32870.0,32868.0,0.68218364]
[1625779344659,0.53388836,32870.0,32868.0,1.0394102]
[1625779344809,0.53388836,32870.0,32869.0,0.24417439]
[1625779344960,0.53388836,32870.0,32869.0,0.74417439]
[1625779345263,0.17799854,32870.0,32869.0,0.74417439]
[1625779347212,1.44503816,32873.0,32869.0,0.74417439]
[1625779347513,1.44503816,32873.0,32870.0,0.53559127]
[1625779347662,1.44503816,32873.0,32871.0,0.5]
[1625779347814,1.44503816,32873.0,32871.0,0.77636]
[1625779347962,1.53418916,32873.0,32871.0,0.86922386]
[1625779348190,0.999951,32873.0,32872.0,0.00359862]
[1625779348487,0.9108,32873.0,32872.0,0.00359862]
[1625779348789,0.9108,32873.0,32872.0,0.4847495]
[1625779349540,0.9108,32873.0,32872.0,0.9847495]
[1625779349690,0.6557,32873.0,32872.0,1.25241004]
[1625779349840,0.6557,32873.0,32872.0,1.60928629]
[1625779349990,0.6557,32873.0,32872.0,2.61828198]
[1625779350140,0.6557,32873.0,32872.0,2.70715445]
[1625779350291,0.6557,32873.0,32872.0,2.77733044]
[1625779353294,0.5639,32873.0,32872.0,2.77733044]
[1625779353444,0.5639,32873.0,32872.0,4.02495969]
[1625779353594,0.5639,32873.0,32872.0,5.02495969]
[1625779353894,0.5639,32873.0,32872.0,5.45097296]
[1625779354195,0.5639,32873.0,32872.0,5.02495969]
[1625779355097,0.5639,32873.0,32872.0,4.02495969]
[1625779356222,0.4347,32873.0,32872.0,4.02495969]
[1625779356598,0.3887,32873.0,32872.0,2.77733044]
[1625779356750,0.3347,32873.0,32872.0,2.77733044]
[1625779357651,0.3347,32873.0,32872.0,4.02404038]
[1625779357804,0.3347,32873.0,32872.0,2.77733044]
[1625779358103,0.3347,32873.0,32872.0,2.27733044]
[1625779358253,0.3347,32873.0,32872.0,3.52374106]
[1625779358555,0.3347,32873.0,32872.0,2.27733044]
[1625779361406,0.3347,32873.0,32872.0,3.5235456]
[1625779361708,0.3347,32873.0,32872.0,2.27733044]
[1625779361856,0.3347,32873.0,32872.0,3.52353486]
[1625779366213,0.3347,32873.0,32872.0,0.99374519]
[1625779366361,0.3315,32873.0,32872.0,0.99374519]
[1625779366510,0.3315,32873.0,32872.0,3.52046585]
[1625779366661,0.3315,32873.0,32872.0,3.51147016]
[1625779366887,0.3315,32873.0,32872.0,3.52046415]
[1625779367864,0.3256,32873.0,32872.0,3.52046415]
[1625779369364,0.3256,32873.0,32872.0,4.94562194]
[1625779369665,0.3256,32873.0,32872.0,3.52046415]
[1625779369967,0.3256,32873.0,32872.0,4.9456171]
[1625779370117,0.3256,32873.0,32872.0,3.52046415]
[1625779371092,0.3223,32873.0,32872.0,3.52046415]
[1625779371316,0.3085,32873.0,32872.0,3.52046415]
[1625779372216,0.3049,32873.0,32872.0,3.52046415]
[1625779372518,0.3049,32873.0,32872.0,4.94677802]
[1625779372817,0.3049,32873.0,32872.0,2.27416741]
[1625779373266,0.3049,32873.0,32872.0,2.80909955]
[1625779373717,0.3049,32873.0,32872.0,1.7408452]
[1625779374021,0.3049,32873.0,32872.0,2.81072401]
[1625779374318,0.3049,32873.0,32872.0,1.7408452]
[1625779378448,0.3049,32873.0,32872.0,2.81209018]
[1625779380554,0.3049,32873.0,32872.0,3.31209018]
[1625779380705,0.3049,32873.0,32872.0,2.81209018]
[1625779380857,0.3049,32873.0,32872.0,5.49015211]
[1625779381154,0.3049,32873.0,32872.0,5.99015211]
[1625779381618,0.2593,32873.0,32872.0,5.99015211]
[1625779381908,0.2481,32873.0,32872.0,5.99015211]
[1625779382282,0.2422,32873.0,32872.0,5.99015211]
[1625779382585,0.2345,32873.0,32872.0,5.99015211]
[1625779382734,0.2345,32873.0,32872.0,7.59733384]
[1625779384315,0.1755,32873.0,32872.0,7.59733384]
[1625779384478,0.1707,32873.0,32872.0,7.59733384]
[1625779385065,0.1069,32873.0,32872.0,7.59733384]
[1625779385821,0.0984,32873.0,32872.0,7.59733384]
[1625779387240,0.0984,32873.0,32872.0,7.09733384]
[1625779387691,0.0984,32873.0,32872.0,7.59733384]
[1625779389495,0.0984,32873.0,32872.0,7.09733384]
[1625779390696,0.0835,32873.0,32872.0,7.09733384]
[1625779390846,0.0803,32873.0,32872.0,7.09733384]
[1625779391447,0.0352,32873.0,32872.0,7.09733384]
[1625779394151,0.0352,32873.0,32872.0,7.59733384]
[1625779395578,0.0352,32873.0,32872.0,7.62969024]
[1625779396182,0.0352,32873.0,32872.0,9.41903875]
[1625779402113,1.03114669,32881.0,32872.0,9.41903875]
[1625779402263,1.56912872,32881.0,32872.0,9.41903875]
[1625779402566,1.56912872,32881.0,32880.0,5.01067528]
[1625779402714,1.56912872,32881.0,32880.0,5.23259528]
[1625779403165,1.21053377,32881.0,32880.0,5.96691274]
[1625779403688,1.21053377,32881.0,32880.0,6.05911274]
[1625779404141,1.20393377,32881.0,32880.0,6.05911274]
[1625779404441,1.5626248,32881.0,32880.0,6.05911274]
[1625779404667,0.9348,32881.0,32880.0,6.05911274]
[1625779405119,1.20411807,32881.0,32880.0,7.67026037]
[1625779405266,1.11481807,32881.0,32880.0,7.67026037]
[1625779405417,0.93533246,32881.0,32880.0,7.67026037]
[1625779406919,0.92803246,32881.0,32880.0,7.67026037]
[1625779407068,1.1075655,32881.0,32880.0,7.67026037]
[1625779407968,1.46652636,32881.0,32880.0,7.67026037]
[1625779408569,1.1075655,32881.0,32880.0,7.67026037]
[1625779409319,1.1045655,32881.0,32880.0,7.67026037]
[1625779409770,1.1015655,32881.0,32880.0,7.67026037]
[1625779410070,1.0966655,32881.0,32880.0,7.67026037]
[1625779410219,1.45572871,32881.0,32880.0,7.67026037]
[1625779411047,1.0966655,32881.0,32880.0,7.67026037]
[1625779411648,1.31891882,32881.0,32880.0,7.67026037]
[1625779411798,0.9598655,32881.0,32880.0,7.67026037]
[1625779411948,0.9598655,32881.0,32880.0,12.44476037]
[1625779412099,0.9569655,32881.0,32880.0,12.44476037]
[1625779412548,1.31601378,32881.0,32880.0,12.44476037]
[1625779414350,0.9569655,32881.0,32880.0,12.44476037]
[1625779414578,0.77743246,32881.0,32880.0,12.44476037]
[1625779417210,1.13644465,32881.0,32880.0,12.44476037]
[1625779417359,1.31604045,32881.0,32880.0,12.35256037]
[1625779418636,1.22620799,32881.0,32880.0,12.35256037]
[1625779418934,1.31609574,32881.0,32880.0,12.35256037]
[1625779419461,1.22620799,32881.0,32880.0,12.35256037]
[1625779420210,1.3160956,32881.0,32880.0,12.35256037]
[1625779422163,1.3160956,32881.0,32880.0,12.44306037]
[1625779423892,0.95708341,32881.0,32880.0,12.44306037]
[1625779424939,0.77748761,32881.0,32880.0,12.44306037]
[1625779426143,0.6876,32881.0,32880.0,12.44306037]
[1625779426441,0.95706297,32881.0,32880.0,12.44306037]
[1625779426817,0.95706297,32881.0,32880.0,12.35256037]
[1625779427869,0.95706297,32881.0,32880.0,12.44236037]
[1625779428321,0.77748079,32881.0,32880.0,12.44236037]
[1625779429521,0.6876,32881.0,32880.0,12.44236037]
[1625779429895,0.77748184,32881.0,32880.0,12.44236037]
[1625779431399,0.6876,32881.0,32880.0,12.44236037]
[1625779431546,0.6876,32881.0,32880.0,12.35256037]
[1625779432151,0.6876,32881.0,32880.0,5.57646037]
[1625779432333,0.98419,32881.0,32880.0,1.61114763]
[1625779432464,1.0740789,32881.0,32880.0,1.61114763]
[1625779432611,1.0740789,32881.0,32878.0,0.00899372]
[1625779432750,0.98419,32881.0,32878.0,0.00899372]
[1625779432899,0.98419,32881.0,32877.0,0.00899389]
[1625779433067,0.98419,32881.0,32872.0,0.24956987]
[1625779433220,0.98419,32881.0,32879.0,0.00359777]
[1625779433221,5.3779,32880.0,32879.0,0.00359777]
[1625779433354,6.09962632,32880.0,32868.0,1.30318381]
[1625779433500,0.5,32879.0,32859.0,0.03224496]
[1625779433655,0.5,32879.0,32869.0,0.00359846]
[1625779433801,1.0,32873.0,32869.0,0.00359846]
[1625779433952,1.21733,32873.0,32860.0,0.00359937]
[1625779434101,0.21733,32873.0,32860.0,0.00359937]
[1625779434250,0.21733,32873.0,32870.0,0.00359948]
[1625779434402,0.21733,32873.0,32872.0,0.53845632]
[1625779434703,0.21733,32873.0,32872.0,0.5420562]
[1625779435006,0.21733,32873.0,32872.0,0.00359988]
[1625779435305,0.21733,32873.0,32865.0,4.2019]
[1625779435454,0.21733,32873.0,32866.0,0.00899974]
[1625779435455,0.93905632,32873.0,32866.0,0.00899974]
[1625779435757,0.93905632,32873.0,32866.0,0.01259957]
[1625779436056,0.93905632,32873.0,32862.0,0.00359983]
[1625779436205,5.068,32871.0,32862.0,0.00359983]
[1625779436358,5.068,32871.0,32867.0,0.00359983]
[1625779436655,5.068,32871.0,32863.0,0.00359989]
[1625779436806,5.068,32871.0,32868.0,0.00359989]
[1625779437107,5.068,32871.0,32860.0,0.00359989]
[1625779437408,5.068,32871.0,32869.0,0.00359989]
[1625779437712,5.068,32871.0,32862.0,0.08956765]
[1625779438009,5.068,32871.0,32860.0,0.26846684]
[1625779438158,5.068,32871.0,32863.0,0.00359992]
[1625779438458,5.068,32871.0,32861.0,0.00359998]
[1625779438609,0.45790544,32873.0,32861.0,0.00359998]
[1625779438758,0.45790544,32873.0,32864.0,0.00360004]
[1625779439060,0.45790544,32873.0,32862.0,0.00360004]
[1625779439209,0.45790544,32873.0,32865.0,0.00360004]
[1625779439359,0.72172632,32866.0,32865.0,0.00360004]
[1625779439509,1.02177632,32866.0,32860.0,0.00360004]
[1625779439810,1.02177632,32866.0,32865.0,0.00360004]
[1625779440110,1.02177632,32866.0,32861.0,0.00360004]
[1625779440260,1.02177632,32866.0,32865.0,0.00360007]
[1625779440561,1.02177632,32866.0,32859.0,0.00360007]
[1625779441461,0.48115088,32860.0,32859.0,0.00360007]
[1625779442437,0.48115088,32860.0,32858.0,0.00360011]
[1625779443490,0.77284083,32859.0,32858.0,0.00360011]
[1625779443638,1.07453083,32859.0,32858.0,0.00360011]
[1625779445592,0.80850499,32859.0,32858.0,0.00360011]
[1625779446042,0.63102409,32859.0,32858.0,0.00360011]
[1625779446191,0.63102409,32859.0,32857.0,0.00360011]
[1625779446342,0.63102409,32859.0,32858.0,0.00360011]
[1625779446492,0.32933409,32859.0,32858.0,0.00360011]
[1625779446641,0.32933409,32859.0,32857.0,0.00360009]
[1625779446794,0.50664447,32859.0,32857.0,0.00360009]
[1625779446941,0.50664447,32859.0,32858.0,0.00360011]
[1625779447391,0.50664447,32859.0,32857.0,0.00360014]
[1625779447769,0.86074335,32859.0,32857.0,0.00360014]
[1625779448068,0.08863311,32858.0,32857.0,0.00360014]
[1625779448368,0.61963634,32858.0,32857.0,0.00360014]
[1625779448519,0.61963634,32858.0,32856.0,4.2032]
[1625779448820,0.26569315,32858.0,32856.0,4.2032]
[1625779449274,0.86010365,32859.0,32856.0,4.2032]
[1625779449424,0.24057544,32857.0,32856.0,4.2032]
[1625779449798,0.24057544,32857.0,32856.0,4.20680029]
[1625779450099,0.24057544,32857.0,32856.0,4.2032]
[1625779450702,0.24057544,32857.0,32852.0,0.6241676]
[1625779451003,0.24057544,32857.0,32851.0,0.26746872]
[1625779451303,0.85735113,32857.0,32848.0,0.62372004]
[1625779451453,0.72172632,32849.0,32848.0,0.62372004]
[1625779451602,5.70011632,32849.0,32848.0,0.62372004]
[1625779451751,5.70011632,32849.0,32832.0,0.9824]
[1625779451752,5.70011632,32849.0,32847.0,0.08910482]
[1625779451902,5.70011632,32849.0,32848.0,0.00360093]
[1625779452202,5.70011632,32849.0,32847.0,0.00360093]
[1625779452801,5.70011632,32849.0,32846.0,0.00360114]
[1625779453102,5.70011632,32849.0,32843.0,0.6232086]
[1625779453552,0.48115088,32844.0,32843.0,0.2670894]
[1625779453852,0.48115088,32844.0,32843.0,0.09263102]
[1625779454153,0.48115088,32844.0,32843.0,0.00360122]
[1625779454754,0.48115088,32844.0,32842.0,0.00360122]
[1625779454904,0.48115088,32844.0,32843.0,0.00360125]
[1625779455206,0.48115088,32844.0,32842.0,0.00360127]
[1625779455431,0.48115088,32844.0,32843.0,0.0036013]
[1625779455730,0.48115088,32844.0,32841.0,0.0036013]
[1625779457008,0.48115088,32844.0,32840.0,0.00360157]
[1625779457159,4.9329,32841.0,32840.0,0.00360157]
[1625779457308,5.21152,32841.0,32840.0,0.00360157]
[1625779457458,5.69267088,32841.0,32840.0,0.00360157]
[1625779458209,5.69267088,32841.0,32837.0,0.00360151]
[1625779458358,5.69267088,32841.0,32840.0,0.00360151]
[1625779458659,5.69267088,32841.0,32837.0,0.00360148]
[1625779459561,0.24057544,32838.0,32837.0,0.00360148]
[1625779463991,0.24057544,32838.0,32833.0,0.003602]
[1625779464294,0.24057544,32838.0,32837.0,0.003602]
[1625779464445,0.24057544,32838.0,32834.0,0.003602]
[1625779464744,0.24057544,32838.0,32833.0,0.003602]
[1625779465571,0.48115088,32834.0,32833.0,0.003602]
[1625779465721,0.74912088,32834.0,32833.0,0.003602]
[1625779466623,0.74912088,32834.0,32832.0,0.9824]
[1625779466922,0.74912088,32834.0,32833.0,0.00360207]
[1625779468654,0.74912088,32834.0,32832.0,0.9824]
[1625779468803,0.74912088,32834.0,32833.0,0.00360206]
[1625779489911,0.74912088,32834.0,32833.0,0.09266098]
[1625779490509,0.74912088,32834.0,32833.0,0.00360206]
[1625779492015,0.74912088,32834.0,32833.0,1.07663867]
[1625779492163,0.74912088,32834.0,32833.0,1.79203021]
[1625779492313,0.48115088,32834.0,32833.0,1.79203021]
[1625779492465,0.48115088,32834.0,32833.0,1.80103564]
[1625779499901,0.48115088,32834.0,32833.0,3.05535036]
[1625779501555,0.48115088,32834.0,32833.0,3.31896036]
[1625779501856,0.48115088,32834.0,32833.0,4.75246529]
[1625779502756,0.48115088,32834.0,32833.0,6.36503795]
[1625779504256,0.24057544,32838.0,32833.0,6.36503795]
[1625779504409,0.24057544,32838.0,32833.0,8.15748779]
[1625779504706,0.17887544,32838.0,32837.0,6.09426438]
[1625779505006,0.17887544,32838.0,32837.0,6.1068677]
[1625779505155,0.17887544,32838.0,32837.0,10.3926677]
[1625779505309,0.24057544,32841.0,32837.0,10.3926677]
[1625779505606,0.24057544,32841.0,32840.0,6.0968353]
[1625779505756,0.24057544,32841.0,32840.0,7.10784162]
[1625779506057,0.24057544,32841.0,32840.0,7.12044493]
[1625779506211,0.24057544,32847.0,32840.0,8.91351339]
[1625779506358,0.24057544,32847.0,32840.0,9.41351339]
[1625779506514,0.53189218,32850.0,32846.0,4.48247908]
[1625779506515,0.26614238,32850.0,32846.0,4.48247908]
[1625779506809,0.50681765,32851.0,32849.0,4.48229356]
[1625779506959,0.24057544,32851.0,32850.0,4.48218425]
[1625779507108,0.24057544,32851.0,32850.0,4.49478607]
[1625779507709,0.24057544,32851.0,32850.0,4.97593695]
[1625779511164,0.24057544,32851.0,32850.0,6.58929927]
[1625779511390,0.24057544,32851.0,32850.0,4.97593695]
[1625779512139,0.24057544,32851.0,32850.0,6.58847455]
[1625779513042,0.24057544,32854.0,32850.0,7.08847455]
[1625779513342,0.62170935,32858.0,32851.0,0.01259961]
[1625779513492,0.62170935,32858.0,32857.0,4.46]
[1625779513643,0.62170935,32858.0,32857.0,6.54814922]
[1625779513792,0.62170935,32858.0,32857.0,7.0293001]
[1625779513942,0.62170935,32858.0,32857.0,7.04189971]
[1625779514320,0.26658152,32858.0,32857.0,7.04189971]
[1625779514618,0.86295545,32859.0,32857.0,7.04189971]
[1625779514767,0.86295545,32859.0,32858.0,0.71569155]
[1625779514918,0.86295545,32859.0,32858.0,0.72829092]
[1625779515896,0.5073692,32859.0,32858.0,0.72829092]
[1625779516422,0.24057544,32859.0,32858.0,0.72829092]
[1625779518075,0.24057544,32859.0,32858.0,1.80062475]
[1625779518528,0.24057544,32859.0,32858.0,0.72829092]
[1625779518902,0.32958091,32862.0,32858.0,0.72829092]
[1625779519204,0.32958091,32862.0,32859.0,0.00359965]
[1625779519354,0.32958091,32862.0,32860.0,0.26792822]
[1625779519506,0.08900547,32862.0,32860.0,0.26792822]
[1625779519805,0.08900547,32862.0,32861.0,0.24417509]
[1625779520557,0.26668258,32863.0,32861.0,0.24417509]
[1625779521157,0.26668258,32863.0,32862.0,0.00359965]
[1625779521307,0.26668258,32863.0,32862.0,4.84259965]
[1625779521833,0.08894631,32863.0,32862.0,4.84259965]
[1625779522432,1.24313484,32865.0,32862.0,4.84259965]
[1625779522583,1.24299097,32868.0,32862.0,4.84259965]
[1625779522584,0.53286756,32867.0,32862.0,4.84259965]
[1625779522734,0.24057544,32869.0,32863.0,0.53523178]
[1625779522883,0.24057544,32869.0,32863.0,0.54782835]
[1625779523185,0.24057544,32869.0,32864.0,0.00359902]
[1625779523335,0.24057544,32869.0,32864.0,0.29612902]
[1625779523636,0.24057544,32869.0,32864.0,0.38652902]
[1625779523786,0.24057544,32869.0,32865.0,0.00359891]
[1625779523936,0.24057544,32869.0,32868.0,0.48115088]
[1625779524239,0.24057544,32869.0,32868.0,0.48474969]
[1625779525587,0.23077544,32869.0,32868.0,0.48474969]
[1625779526864,0.77358461,32873.0,32868.0,0.48474969]
[1625779527015,0.24057544,32873.0,32868.0,0.48474969]
[1625779527164,1.24309845,32874.0,32868.0,0.48474969]
[1625779527316,1.24309845,32874.0,32869.0,0.00359887]
[1625779527465,0.53278951,32874.0,32869.0,0.00359887]
[1625779527615,0.53278951,32874.0,32873.0,4.1381]
[1625779527767,0.53278951,32874.0,32873.0,4.41543]
[1625779527915,0.53278951,32874.0,32873.0,4.89658088]
[1625779528065,0.53278951,32874.0,32873.0,4.90017975]
[1625779528815,0.53278951,32874.0,32873.0,4.90917642]
[1625779532573,1.24211556,32875.0,32873.0,4.90917642]
[1625779533171,1.24211556,32875.0,32874.0,0.01259534]
[1625779534221,0.5320413,32875.0,32874.0,0.01259534]
[1625779540679,1.48078232,32876.0,32874.0,0.01259534]
[1625779541507,1.48078232,32876.0,32875.0,4.8874]
[1625779541655,0.77159876,32876.0,32875.0,4.8874]
[1625779541958,0.77159876,32876.0,32875.0,4.89999511]
[1625779547062,0.24057544,32876.0,32875.0,4.89999511]
[1625779547213,0.77194962,32876.0,32875.0,4.89999511]
[1625779547964,0.24057544,32876.0,32875.0,4.89999511]
[1625779555172,0.53191244,32879.0,32875.0,4.89999511]
[1625779555623,1.48291946,32881.0,32876.0,0.01259268]
[1625779555772,1.48291946,32881.0,32880.0,5.1718]
[1625779555925,1.48291946,32881.0,32880.0,5.48072]
[1625779556075,1.48291946,32881.0,32880.0,5.72129544]
[1625779556224,0.77303394,32881.0,32880.0,5.7338881]
[1625779557573,1.48381892,32881.0,32880.0,5.7338881]
[1625779559225,2.55082311,32881.0,32880.0,5.7338881]
[1625779560126,3.79684302,32881.0,32880.0,5.7338881]
[1625779562455,5.2226963,32881.0,32880.0,5.7338881]
[1625779562831,3.79684302,32881.0,32880.0,5.7338881]
[1625779563581,5.22386673,32881.0,32880.0,5.7338881]
[1625779564708,3.79684302,32881.0,32880.0,5.7338881]
[1625779565158,5.22531033,32881.0,32880.0,5.7338881]
[1625779565384,3.79684302,32881.0,32880.0,5.7338881]
[1625779565683,5.22667153,32881.0,32880.0,5.7338881]
[1625779570039,4.98609609,32881.0,32880.0,5.7338881]
[1625779576648,4.98609609,32881.0,32880.0,0.5620881]
[1625779577097,9.55879609,32881.0,32880.0,0.55309335]
[1625779578827,9.55879609,32881.0,32880.0,0.24417335]
[1625779578977,9.55879609,32881.0,32880.0,0.2531692]
[1625779579126,11.17012592,32881.0,32880.0,0.2531692]
[1625779579279,11.17012592,32881.0,32880.0,0.24417335]
[1625779580253,11.41070136,32881.0,32880.0,0.24417335]
[1625779581159,11.41070136,32881.0,32877.0,0.00899627]
[1625779581459,6.62553533,32878.0,32877.0,0.00899627]
[1625779581611,6.90030533,32878.0,32877.0,0.00359865]
[1625779582209,6.90030533,32878.0,32875.0,0.00359878]
[1625779582210,7.38145621,32878.0,32875.0,0.00359878]
[1625779582358,7.38145621,32878.0,32877.0,0.00359878]
[1625779582658,7.38145621,32878.0,32875.0,0.00359892]
[1625779582809,5.01344166,32876.0,32875.0,0.00359892]
[1625779583260,6.62474421,32876.0,32875.0,0.00359892]
[1625779583712,6.62474421,32876.0,32874.0,0.54181406]
[1625779583937,5.01363245,32875.0,32874.0,0.54181406]
[1625779584088,5.01363245,32875.0,32874.0,0.53821511]
[1625779584237,5.25420789,32875.0,32874.0,0.53821511]
[1625779584387,5.25420789,32875.0,32874.0,0.54181404]
[1625779584917,5.25420789,32875.0,32874.0,1.25943698]
[1625779585064,5.25420789,32875.0,32874.0,1.26843436]
[1625779586268,10.27640789,32875.0,32874.0,1.26843436]
[1625779586949,10.27640789,32875.0,32874.0,0.01259631]
[1625779587395,10.27640789,32875.0,32874.0,0.54189657]
[1625779589049,10.27640789,32875.0,32874.0,1.25964624]
[1625779589498,10.27640789,32875.0,32874.0,1.26864341]
[1625779589652,10.27640789,32875.0,32874.0,0.55089374]
[1625779590025,10.27640789,32875.0,32874.0,0.54189657]
[1625779591676,10.27640789,32875.0,32874.0,1.25979899]
[1625779592128,10.27640789,32875.0,32874.0,1.26879616]
[1625779592579,10.27640789,32875.0,32874.0,2.34565309]
[1625779598964,10.27640789,32875.0,32874.0,2.34205416]
[1625779599114,10.27640789,32875.0,32874.0,2.34565288]
[1625779605951,10.27640789,32875.0,32874.0,3.60224725]
[1625779606250,5.25420789,32875.0,32874.0,3.60224725]
[1625779606400,5.25420789,32875.0,32874.0,3.87286725]
[1625779606850,5.25420789,32875.0,32874.0,8.83306725]
[1625779607000,5.25420789,32875.0,32874.0,10.26837575]
[1625779607450,3.8218182,32875.0,32874.0,10.26837575]
[1625779607904,2.56845484,32875.0,32874.0,10.26837575]
[1625779608502,1.49411782,32875.0,32874.0,11.88122083]
[1625779609927,0.77783346,32875.0,32874.0,11.88122083]
[1625779610604,1.49614701,32875.0,32874.0,11.88122083]
[1625779611130,0.77783346,32875.0,32874.0,11.88122083]
[1625779614585,1.49594448,32875.0,32874.0,11.88122083]
[1625779616386,1.49594448,32875.0,32874.0,10.26837575]
[1625779626306,1.49594448,32875.0,32874.0,18.62177575]
[1625779626607,1.49594448,32875.0,32874.0,18.6536636]
[1625779627432,1.49594448,32875.0,32874.0,25.9502636]
[1625779630137,0.77783346,32875.0,32874.0,25.9502636]
[1625779630588,0.77403346,32875.0,32874.0,25.9502636]
[1625779632014,1.49194969,32875.0,32874.0,25.9502636]
[1625779632767,0.77403346,32875.0,32874.0,25.9502636]
[1625779634342,0.24057544,32875.0,32874.0,27.55769171]
[1625779635167,0.24057544,32875.0,32874.0,25.9502636]
[1625779635917,0.24057544,32875.0,32874.0,27.55760079]
[1625779642524,0.24057544,32875.0,32874.0,27.64980079]
[1625779643651,0.24057544,32875.0,32874.0,27.55760079]
[1625779646505,0.24057544,32875.0,32874.0,27.79817623]
[1625779655288,0.23747544,32875.0,32874.0,27.79817623]
[1625779657616,0.23747544,32875.0,32874.0,33.01587623]
[1625779657765,0.23747544,32875.0,32874.0,27.79817623]
[1625779660620,4.12387544,32875.0,32874.0,27.79817623]
[1625779661221,4.48298141,32875.0,32874.0,7.18797623]
[1625779661368,5.0818443,32875.0,32874.0,7.18797623]
[1625779661517,5.0818443,32875.0,32874.0,6.94740079]
[1625779661668,7.41314911,32875.0,32874.0,5.30817575]
[1625779661817,7.41314911,32875.0,32874.0,5.03755575]
[1625779662117,8.84716811,32875.0,32874.0,3.60224725]
[1625779662718,9.08774355,32875.0,32874.0,3.60224725]
[1625779663017,9.08774355,32875.0,32874.0,2.13124725]
[1625779663917,9.08774355,32875.0,32874.0,0.87465288]
[1625779664592,9.08774355,32875.0,32874.0,0.88365046]
[1625779664743,10.70078372,32875.0,32874.0,0.0125963]
[1625779665193,10.70078372,32875.0,32873.0,0.00359919]
[1625779665342,10.70078372,32875.0,32874.0,0.00359929]
[1625779665493,4.60453088,32875.0,32874.0,0.3627961]
[1625779665643,8.90244243,32875.0,32874.0,0.35919681]
[1625779665873,8.90244243,32875.0,32874.0,0.36279605]
[1625779666397,8.90244243,32875.0,32874.0,0.00359924]
[1625779668350,8.90244243,32875.0,32873.0,0.00359954]
[1625779668504,4.29210963,32874.0,32873.0,0.00359954]
[1625779668875,4.29210963,32874.0,32872.0,0.36258082]
[1625779669026,4.29210963,32874.0,32872.0,0.00359957]
[1625779669176,4.60453088,32875.0,32873.0,0.00359957]
[1625779669476,4.29151936,32874.0,32873.0,0.00359957]
[1625779669776,4.29151936,32874.0,32872.0,0.36257571]
[1625779669927,4.29151936,32874.0,32873.0,0.00359955]
[1625779670227,4.29151936,32874.0,32872.0,0.00359952]
[1625779670528,4.28988728,32873.0,32872.0,0.00359952]
[1625779671130,5.0116136,32873.0,32872.0,0.00359952]
[1625779671279,3.40292821,32873.0,32872.0,0.00359952]
[1625779673530,1.97296578,32873.0,32872.0,0.00359952]
[1625779673682,1.97296578,32873.0,32871.0,4.3322]
[1625779673982,1.97296578,32873.0,32872.0,0.01259675]
[1625779674284,0.72172632,32873.0,32872.0,0.01259675]
[1625779674583,0.72172632,32873.0,32872.0,1.53113448]
[1625779675107,0.72172632,32873.0,32872.0,2.96525244]
[1625779675932,1.08008519,32873.0,32872.0,2.96525244]